[Event "Late-Titled-Tuesday-Blitz-June-04-2024"]
[Site "Chess.com"]
[Date "2024.06.04"]
[Round "3"]
[White "sokidze"]
[Black "N_Mullodzhanov"]
[Result "0-1"]
[WhiteElo "2782"]
[BlackElo "2516"]
[TimeControl "180+1"]
[EndTime "14:30:26 PDT"]
[Termination "N_Mullodzhanov won by resignation"]

1. d4 {[%clk 0:03:00.9]} 1... Nf6 {[%clk 0:02:57.6]} 2. Bf4 {[%clk 0:03:00.3]}
2... c5 {[%clk 0:02:55.7]} 3. d5 {[%clk 0:02:59.3]} 3... d6 {[%clk 0:02:55.3]}
4. Nc3 {[%clk 0:02:56.9]} 4... g6 {[%clk 0:02:53.3]} 5. e4 {[%clk 0:02:56.3]}
5... Bg7 {[%clk 0:02:53.2]} 6. Bb5+ {[%clk 0:02:51.1]} 6... Bd7 {[%clk
0:02:51.3]} 7. a4 {[%clk 0:02:50.4]} 7... O-O {[%clk 0:02:50]} 8. Nf3 {[%clk
0:02:50.3]} 8... a6 {[%clk 0:02:46.4]} 9. Be2 {[%clk 0:02:41.4]} 9... Nh5 {[%clk
0:02:08.2]} 10. Be3 {[%clk 0:02:30.3]} 10... f5 {[%clk 0:02:04.2]} 11. exf5
{[%clk 0:02:24.4]} 11... Bxf5 {[%clk 0:01:26.6]} 12. O-O {[%clk 0:02:22.8]}
12... Nf6 {[%clk 0:01:22.7]} 13. Nd2 {[%clk 0:02:18.3]} 13... b6 {[%clk
0:01:09.9]} 14. f4 {[%clk 0:02:08.8]} 14... Bc8 {[%clk 0:01:02.6]} 15. Nc4
{[%clk 0:02:06.7]} 15... Nbd7 {[%clk 0:00:48.1]} 16. Rb1 {[%clk 0:01:15.9]}
16... Rb8 {[%clk 0:00:45.2]} 17. b4 {[%clk 0:01:13]} 17... b5 {[%clk 0:00:42.9]}
18. axb5 {[%clk 0:01:13]} 18... axb5 {[%clk 0:00:42.9]} 19. Na5 {[%clk
0:01:13.7]} 19... Bb7 {[%clk 0:00:22.5]} 20. bxc5 {[%clk 0:00:59.7]} 20... Qxa5
{[%clk 0:00:18.9]} 21. Nxb5 {[%clk 0:00:32.5]} 21... Nxc5 {[%clk 0:00:16.6]} 22.
c4 {[%clk 0:00:33]} 22... Nfe4 {[%clk 0:00:14.8]} 23. Bd4 {[%clk 0:00:30.3]}
23... Ba6 {[%clk 0:00:11.4]} 24. Ra1 {[%clk 0:00:29.6]} 24... Qb6 {[%clk
0:00:09.8]} 25. Bxg7 {[%clk 0:00:20.8]} 25... Bxb5 {[%clk 0:00:10.2]} 26. Qd4
{[%clk 0:00:09.1]} 26... Rf7 {[%clk 0:00:10.5]} 27. cxb5 {[%clk 0:00:05.7]}
27... Rxg7 {[%clk 0:00:10.3]} 28. Kh1 {[%clk 0:00:06.4]} 28... Nf6 {[%clk
0:00:09.3]} 29. f5 {[%clk 0:00:05.2]} 29... Nce4 {[%clk 0:00:09.3]} 30. Qxb6
{[%clk 0:00:03.1]} 30... Rxb6 {[%clk 0:00:10.2]} 31. fxg6 {[%clk 0:00:03.3]}
31... hxg6 {[%clk 0:00:09.7]} 32. Ra8+ {[%clk 0:00:03.2]} 32... Kf7 {[%clk
0:00:08]} 33. Ra6 {[%clk 0:00:01.9]} 33... Rb8 {[%clk 0:00:07.3]} 34. Ra7 {[%clk
0:00:01.4]} 34... Nc3 {[%clk 0:00:07.2]} 35. Bc4 {[%clk 0:00:01.6]} 35... Nxb5
{[%clk 0:00:06.8]} 36. Ra5 {[%clk 0:00:02.2]} 36... Nc7 {[%clk 0:00:06.6]} 37.
h3 {[%clk 0:00:02.3]} 37... Rgg8 {[%clk 0:00:07.1]} 38. Be2 {[%clk 0:00:01.8]}
38... Kg7 {[%clk 0:00:06.1]} 39. Bf3 {[%clk 0:00:02]} 39... Rb4 {[%clk
0:00:06.3]} 40. Re1 {[%clk 0:00:02.2]} 40... Kf7 {[%clk 0:00:05.7]} 41. Rc1
{[%clk 0:00:02.6]} 41... Nb5 {[%clk 0:00:03.9]} 42. Ra6 {[%clk 0:00:02.4]} 42...
Nd4 {[%clk 0:00:04.4]} 43. Bd1 {[%clk 0:00:01.5]} 43... Nf5 {[%clk 0:00:04.7]}
44. Bf3 {[%clk 0:00:01.4]} 44... Rd4 {[%clk 0:00:05.2]} 45. Ra5 {[%clk
0:00:01.4]} 45... Nh4 {[%clk 0:00:05.6]} 46. Bd1 {[%clk 0:00:01.5]} 46... Rb8
{[%clk 0:00:05.6]} 47. Ba4 {[%clk 0:00:01.2]} 47... Rbb4 {[%clk 0:00:04.8]} 48.
Bc6 {[%clk 0:00:01.6]} 48... Re4 {[%clk 0:00:05.3]} 49. Ra7 {[%clk 0:00:02.2]}
49... Rbc4 {[%clk 0:00:05.5]} 50. Rf1 {[%clk 0:00:02.6]} 50... Rcd4 {[%clk
0:00:05.3]} 51. Rb1 {[%clk 0:00:03.2]} 51... Nf5 {[%clk 0:00:05.2]} 52. Kh2
{[%clk 0:00:02.9]} 52... Ne3 {[%clk 0:00:05.7]} 53. Rb2 {[%clk 0:00:03]} 53...
Nexd5 {[%clk 0:00:06.1]} 54. Bb5 {[%clk 0:00:02.1]} 54... Re5 {[%clk 0:00:06.5]}
55. Rc2 {[%clk 0:00:02.1]} 55... Rf4 {[%clk 0:00:05.6]} 56. Bc4 {[%clk
0:00:02.3]} 56... Rh5 {[%clk 0:00:05.6]} 57. Ba2 {[%clk 0:00:02.6]} 57... Rd4
{[%clk 0:00:05.9]} 58. Rcc7 {[%clk 0:00:02.4]} 58... Re5 {[%clk 0:00:06.3]} 59.
Rcb7 {[%clk 0:00:02.6]} 59... Kg7 {[%clk 0:00:06.3]} 60. Bb3 {[%clk 0:00:03.1]}
60... Rb4 {[%clk 0:00:06]} 61. Bxd5 {[%clk 0:00:02.4]} 61... Nxd5 {[%clk
0:00:06.2]} 62. Rd7 {[%clk 0:00:03.1]} 62... Rbe4 {[%clk 0:00:05.9]} 63. Rd8
{[%clk 0:00:03.5]} 63... Kf6 {[%clk 0:00:06.4]} 64. Rf8+ {[%clk 0:00:03.3]}
64... Ke6 {[%clk 0:00:06.3]} 65. Rg8 {[%clk 0:00:03.5]} 65... Kf7 {[%clk
0:00:06.4]} 66. Raa8 {[%clk 0:00:03.4]} 66... Nf4 {[%clk 0:00:03.1]} 67. Raf8+
{[%clk 0:00:04]} 67... Ke6 {[%clk 0:00:03.7]} 68. h4 {[%clk 0:00:04.7]} 68...
Rh5 {[%clk 0:00:03.5]} 69. g3 {[%clk 0:00:05]} 69... Re2+ {[%clk 0:00:04]} 70.
Kg1 {[%clk 0:00:05.7]} 70... Nh3+ {[%clk 0:00:04.4]} 71. Kf1 {[%clk 0:00:06.4]}
71... Ree5 {[%clk 0:00:04.9]} 72. Rxg6+ {[%clk 0:00:06.8]} 72... Kd7 {[%clk
0:00:05.5]} 73. Kg2 {[%clk 0:00:07.3]} 73... Ng5 {[%clk 0:00:02.8]} 74. hxg5
{[%clk 0:00:06.3]} 74... Rhxg5 {[%clk 0:00:03.7]} 75. Rh6 {[%clk 0:00:04.1]}
75... Rd5 {[%clk 0:00:03.9]} 76. Rf3 {[%clk 0:00:04.3]} 76... Rd4 {[%clk
0:00:04.2]} 77. Kh3 {[%clk 0:00:04.6]} 77... Kc6 {[%clk 0:00:04.5]} 78. Re6
{[%clk 0:00:04.1]} 78... Rc5 {[%clk 0:00:05]} 79. Rxe7 {[%clk 0:00:04.5]} 79...
Rd2 {[%clk 0:00:04.5]} 80. Re8 {[%clk 0:00:04.5]} 80... d5 {[%clk 0:00:05]} 81.
Rc8+ {[%clk 0:00:04.6]} 81... Kb5 {[%clk 0:00:05.3]} 82. Rb8+ {[%clk 0:00:03.5]}
82... Kc4 {[%clk 0:00:05.6]} 83. g4 {[%clk 0:00:04.2]} 83... d4 {[%clk
0:00:05.2]} 84. Rd8 {[%clk 0:00:04.4]} 84... Rd3 {[%clk 0:00:03.7]} 85. Kh4
{[%clk 0:00:05]} 85... Rxf3 {[%clk 0:00:03.8]} 86. g5 {[%clk 0:00:05.2]} 86...
Rf4+ {[%clk 0:00:04.3]} 87. Kg3 {[%clk 0:00:05.8]} 87... Re4 {[%clk 0:00:04.9]}
88. Kf3 {[%clk 0:00:06.1]} 88... Re3+ {[%clk 0:00:04.7]} 89. Kf4 {[%clk
0:00:06.5]} 89... Re1 {[%clk 0:00:04.1]} 90. g6 {[%clk 0:00:07]} 90... Rf1+
{[%clk 0:00:04.7]} 91. Ke4 {[%clk 0:00:06.7]} 91... Rc7 {[%clk 0:00:04.9]} 92.
Rxd4+ {[%clk 0:00:06.5]} 92... Kc3 {[%clk 0:00:04.6]} 93. Rd3+ {[%clk
0:00:06.4]} 93... Kc2 {[%clk 0:00:04.6]} 94. Rg3 {[%clk 0:00:07]} 94... Re7+
{[%clk 0:00:04.8]} 95. Kd5 {[%clk 0:00:07]} 95... Rd1+ {[%clk 0:00:05.4]} 96.
Kc6 {[%clk 0:00:06.7]} 96... Rg7 {[%clk 0:00:06]} 97. Kc5 {[%clk 0:00:03.4]}
97... Kc1 {[%clk 0:00:06.7]} 98. Kc4 {[%clk 0:00:03.6]} 98... Rd6 {[%clk
0:00:06.6]} 99. Rg1+ {[%clk 0:00:02.7]} 99... Kd2 {[%clk 0:00:06.9]} 100. Rg2+
{[%clk 0:00:03.4]} 100... Ke3 {[%clk 0:00:07.3]} 101. Rg3+ {[%clk 0:00:04]}
101... Kf4 {[%clk 0:00:07.7]} 102. Rg1 {[%clk 0:00:04.7]} 102... Rdxg6 {[%clk
0:00:07.8]} 103. Rf1+ {[%clk 0:00:05.6]} 103... Ke5 {[%clk 0:00:08.2]} 0-1

[Event "Late-Titled-Tuesday-Blitz-June-04-2024"]
[Site "Chess.com"]
[Date "2024.06.04"]
[Round "4"]
[White "boguszp"]
[Black "Mariia89"]
[Result "0-1"]
[WhiteElo "1981"]
[BlackElo "2244"]
[TimeControl "180+1"]
[EndTime "14:34:15 PDT"]
[Termination "Mariia89 won by resignation"]

1. d4 {[%clk 0:02:55.4]} 1... Nf6 {[%clk 0:02:59.5]} 2. Nf3 {[%clk 0:02:50.3]}
2... c5 {[%clk 0:02:59.7]} 3. c3 {[%clk 0:02:48]} 3... cxd4 {[%clk 0:02:59.8]}
4. cxd4 {[%clk 0:02:47.8]} 4... d5 {[%clk 0:03:00.7]} 5. Nc3 {[%clk 0:02:47.3]}
5... Bf5 {[%clk 0:02:59.1]} 6. Bf4 {[%clk 0:02:45.6]} 6... a6 {[%clk 0:02:59.2]}
7. a3 {[%clk 0:02:44.8]} 7... e6 {[%clk 0:02:59.2]} 8. e3 {[%clk 0:02:44.7]}
8... Bd6 {[%clk 0:02:59.5]} 9. Ne5 {[%clk 0:02:42.8]} 9... Nc6 {[%clk
0:02:57.1]} 10. Bd3 {[%clk 0:02:38.4]} 10... Bxd3 {[%clk 0:02:56.7]} 11. Qxd3
{[%clk 0:02:36.8]} 11... Bxe5 {[%clk 0:02:56.8]} 12. dxe5 {[%clk 0:02:28]} 12...
Nd7 {[%clk 0:02:56.1]} 13. O-O {[%clk 0:02:12.4]} 13... Ndxe5 {[%clk 0:02:55.8]}
14. Bxe5 {[%clk 0:01:58.5]} 14... Nxe5 {[%clk 0:02:56.7]} 15. Qd4 {[%clk
0:01:58.5]} 15... Qf6 {[%clk 0:02:54.8]} 16. e4 {[%clk 0:01:54.7]} 16... Nf3+
{[%clk 0:02:37.6]} 17. gxf3 {[%clk 0:01:51.8]} 17... Qxd4 {[%clk 0:02:37.9]} 18.
Rad1 {[%clk 0:01:50.5]} 18... Qf6 {[%clk 0:02:34.4]} 19. exd5 {[%clk 0:01:50]}
19... O-O {[%clk 0:02:25.3]} 20. Rd3 {[%clk 0:01:42.6]} 20... Qg6+ {[%clk
0:02:19.1]} 0-1

[Event "Late-Titled-Tuesday-Blitz-June-04-2024"]
[Site "Chess.com"]
[Date "2024.06.04"]
[Round "4"]
[White "CrushingKings"]
[Black "jucAxx"]
[Result "1-0"]
[WhiteElo "2619"]
[BlackElo "2311"]
[TimeControl "180+1"]
[EndTime "14:34:39 PDT"]
[Termination "CrushingKings won by resignation"]

1. Nf3 {[%clk 0:03:00.9]} 1... f5 {[%clk 0:02:59.5]} 2. g3 {[%clk 0:03:00.7]}
2... d6 {[%clk 0:02:58]} 3. d4 {[%clk 0:03:00.8]} 3... c6 {[%clk 0:02:56.7]} 4.
Bg2 {[%clk 0:03:00.9]} 4... Qc7 {[%clk 0:02:57.3]} 5. O-O {[%clk 0:03:01.2]}
5... e5 {[%clk 0:02:57.9]} 6. dxe5 {[%clk 0:03:01.3]} 6... dxe5 {[%clk
0:02:58.8]} 7. e4 {[%clk 0:03:01.8]} 7... Nf6 {[%clk 0:02:58.3]} 8. exf5 {[%clk
0:03:01.6]} 8... Bxf5 {[%clk 0:02:57.3]} 9. Re1 {[%clk 0:03:02.2]} 9... Nbd7
{[%clk 0:02:55.5]} 10. Nbd2 {[%clk 0:02:25.5]} 10... O-O-O {[%clk 0:02:49.1]}
11. Nc4 {[%clk 0:02:19.3]} 11... Re8 {[%clk 0:02:19.3]} 12. b3 {[%clk
0:01:56.7]} 12... Bb4 {[%clk 0:02:04.7]} 13. Bd2 {[%clk 0:01:53.9]} 13... Bxd2
{[%clk 0:01:58.8]} 14. Qxd2 {[%clk 0:01:54.2]} 14... Rhf8 {[%clk 0:01:34.8]} 15.
Nd6+ {[%clk 0:01:53]} 1-0

[Event "Late-Titled-Tuesday-Blitz-June-04-2024"]
[Site "Chess.com"]
[Date "2024.06.04"]
[Round "4"]
[White "Navyblue1"]
[Black "SameerMujumdar"]
[Result "0-1"]
[WhiteElo "2209"]
[BlackElo "2612"]
[TimeControl "180+1"]
[EndTime "14:34:45 PDT"]
[Termination "SameerMujumdar won by resignation"]

1. d4 {[%clk 0:02:23]} 1... Nf6 {[%clk 0:02:58.7]} 2. c4 {[%clk 0:02:23.6]} 2...
g6 {[%clk 0:02:58.8]} 3. Nc3 {[%clk 0:02:24]} 3... Bg7 {[%clk 0:02:59.4]} 4. e4
{[%clk 0:02:23.5]} 4... d6 {[%clk 0:03:00]} 5. h3 {[%clk 0:02:19.3]} 5... O-O
{[%clk 0:02:59.8]} 6. Be3 {[%clk 0:02:19]} 6... e5 {[%clk 0:02:59.3]} 7. d5
{[%clk 0:02:13.7]} 7... Na6 {[%clk 0:02:59.8]} 8. g4 {[%clk 0:02:12.2]} 8... Nc5
{[%clk 0:03:00.2]} 9. Bg2 {[%clk 0:02:11.9]} 9... a5 {[%clk 0:02:57.8]} 10. Nge2
{[%clk 0:02:10.6]} 10... c6 {[%clk 0:02:53.6]} 11. Ng3 {[%clk 0:02:04.5]} 11...
cxd5 {[%clk 0:02:53.1]} 12. cxd5 {[%clk 0:02:03.5]} 12... Bd7 {[%clk 0:02:50.4]}
13. a4 {[%clk 0:01:58.4]} 13... Qb6 {[%clk 0:02:39.7]} 14. Ra2 {[%clk 0:01:42]}
14... Qa6 {[%clk 0:02:34.1]} 15. Bf1 {[%clk 0:01:36.4]} 15... Qb6 {[%clk
0:02:34.4]} 16. Bb5 {[%clk 0:01:33.7]} 16... Bxb5 {[%clk 0:02:32]} 17. axb5
{[%clk 0:01:32.4]} 17... a4 {[%clk 0:02:28.9]} 18. O-O {[%clk 0:01:28.5]} 18...
Nfd7 {[%clk 0:02:16]} 19. Qb3 {[%clk 0:01:08.3]} 19... axb3 {[%clk 0:02:11.1]}
0-1

[Event "Late-Titled-Tuesday-Blitz-June-04-2024"]
[Site "Chess.com"]
[Date "2024.06.04"]
[Round "4"]
[White "yaguigor"]
[Black "Heliosis11"]
[Result "1-0"]
[WhiteElo "2614"]
[BlackElo "2404"]
[TimeControl "180+1"]
[EndTime "14:35:20 PDT"]
[Termination "yaguigor won by resignation"]

1. Nf3 {[%clk 0:03:00.9]} 1... c5 {[%clk 0:02:58.5]} 2. e4 {[%clk 0:02:59.7]}
2... e6 {[%clk 0:02:47.6]} 3. d4 {[%clk 0:02:58]} 3... cxd4 {[%clk 0:02:47.2]}
4. Nxd4 {[%clk 0:02:58.2]} 4... Nc6 {[%clk 0:02:45.7]} 5. Nc3 {[%clk 0:02:57.8]}
5... Qc7 {[%clk 0:02:44.5]} 6. Be3 {[%clk 0:02:57]} 6... a6 {[%clk 0:02:43.2]}
7. Qd2 {[%clk 0:02:56.6]} 7... Nf6 {[%clk 0:02:42.3]} 8. f4 {[%clk 0:02:56.9]}
8... Bb4 {[%clk 0:02:39.3]} 9. Bd3 {[%clk 0:02:57.4]} 9... b5 {[%clk 0:02:34.3]}
10. a3 {[%clk 0:02:49.8]} 10... Be7 {[%clk 0:02:31.2]} 11. e5 {[%clk 0:02:42.5]}
11... Ng4 {[%clk 0:02:26.4]} 12. Nxc6 {[%clk 0:02:24.5]} 12... dxc6 {[%clk
0:02:22.6]} 13. Ne4 {[%clk 0:02:00.3]} 13... Nxe3 {[%clk 0:02:14.2]} 14. Qxe3
{[%clk 0:02:01.2]} 14... Bb7 {[%clk 0:02:13.9]} 15. O-O-O {[%clk 0:01:57.7]}
15... Rd8 {[%clk 0:02:01]} 16. Be2 {[%clk 0:01:19.5]} 16... c5 {[%clk
0:01:57.7]} 17. Rxd8+ {[%clk 0:01:17.3]} 17... Qxd8 {[%clk 0:01:54.4]} 18. Rd1
{[%clk 0:01:14.8]} 18... Qb6 {[%clk 0:01:52.8]} 19. Nd6+ {[%clk 0:01:13.8]}
19... Bxd6 {[%clk 0:01:51]} 20. Rxd6 {[%clk 0:01:14.3]} 20... Qc7 {[%clk
0:01:51.5]} 21. Bf3 {[%clk 0:01:12.6]} 21... Kf8 {[%clk 0:01:49.6]} 22. Bxb7
{[%clk 0:01:07.9]} 1-0

[Event "Late-Titled-Tuesday-Blitz-June-04-2024"]
[Site "Chess.com"]
[Date "2024.06.04"]
[Round "4"]
[White "JoakimVonAnd"]
[Black "The_Straightforward_Rook"]
[Result "1-0"]
[WhiteElo "2779"]
[BlackElo "2549"]
[TimeControl "180+1"]
[EndTime "14:35:26 PDT"]
[Termination "JoakimVonAnd won by resignation"]

1. Nf3 {[%clk 0:03:00.9]} 1... d5 {[%clk 0:02:58]} 2. g3 {[%clk 0:03:00.6]} 2...
Nf6 {[%clk 0:02:56.7]} 3. Bg2 {[%clk 0:03:00.3]} 3... c6 {[%clk 0:02:54.8]} 4.
O-O {[%clk 0:02:59.7]} 4... Bf5 {[%clk 0:02:54.6]} 5. c4 {[%clk 0:02:59]} 5...
e6 {[%clk 0:02:51.9]} 6. Qb3 {[%clk 0:02:57.8]} 6... Qb6 {[%clk 0:02:51.4]} 7.
d3 {[%clk 0:02:57.2]} 7... Nbd7 {[%clk 0:02:47.7]} 8. Be3 {[%clk 0:02:55.6]}
8... Qxb3 {[%clk 0:02:47.8]} 9. axb3 {[%clk 0:02:56.1]} 9... a6 {[%clk
0:02:48.3]} 10. Nd4 {[%clk 0:02:20.5]} 10... Bg6 {[%clk 0:02:42.4]} 11. f4
{[%clk 0:02:14]} 11... Bc5 {[%clk 0:02:33.4]} 12. h3 {[%clk 0:02:04.1]} 12...
O-O {[%clk 0:02:15]} 13. Nc2 {[%clk 0:01:54]} 13... Rfe8 {[%clk 0:02:01.7]} 14.
b4 {[%clk 0:01:47.4]} 14... Bd6 {[%clk 0:01:49.2]} 15. Nd2 {[%clk 0:01:41.1]}
15... e5 {[%clk 0:01:43.8]} 16. f5 {[%clk 0:01:40.5]} 16... Bh5 {[%clk
0:01:38.7]} 17. g4 {[%clk 0:01:40.7]} 17... Bxg4 {[%clk 0:01:25.4]} 18. hxg4
{[%clk 0:01:39.6]} 18... Nxg4 {[%clk 0:01:26.3]} 19. cxd5 {[%clk 0:01:39.5]}
19... Nxe3 {[%clk 0:01:20.6]} 20. Nxe3 {[%clk 0:01:40.4]} 20... Bxb4 {[%clk
0:01:21.1]} 21. Ne4 {[%clk 0:01:35.6]} 21... cxd5 {[%clk 0:01:10.3]} 22. Nxd5
{[%clk 0:01:36.5]} 22... Bc5+ {[%clk 0:01:08.6]} 23. Nxc5 {[%clk 0:01:34.3]}
23... Nxc5 {[%clk 0:01:09.5]} 24. Nc7 {[%clk 0:01:34.9]} 1-0

[Event "Late-Titled-Tuesday-Blitz-June-04-2024"]
[Site "Chess.com"]
[Date "2024.06.04"]
[Round "4"]
[White "Naruna_Chan"]
[Black "czasnaszachy"]
[Result "0-1"]
[WhiteElo "2275"]
[BlackElo "2476"]
[TimeControl "180+1"]
[EndTime "14:36:04 PDT"]
[Termination "czasnaszachy won by resignation"]

1. e4 {[%clk 0:03:00.9]} 1... e5 {[%clk 0:02:57.6]} 2. Nf3 {[%clk 0:03:00.3]}
2... Nc6 {[%clk 0:02:57.7]} 3. Bc4 {[%clk 0:02:57.1]} 3... Bc5 {[%clk
0:02:56.7]} 4. c3 {[%clk 0:02:57.4]} 4... Nf6 {[%clk 0:02:56]} 5. d4 {[%clk
0:02:56.7]} 5... exd4 {[%clk 0:02:54.4]} 6. cxd4 {[%clk 0:02:57.6]} 6... Bb4+
{[%clk 0:02:54.3]} 7. Nc3 {[%clk 0:02:58.1]} 7... Nxe4 {[%clk 0:02:51.5]} 8. O-O
{[%clk 0:02:58.5]} 8... Bxc3 {[%clk 0:02:51.1]} 9. d5 {[%clk 0:02:58.3]} 9...
Ne5 {[%clk 0:02:51]} 10. Nxe5 {[%clk 0:02:54.2]} 10... Bxe5 {[%clk 0:02:46.1]}
11. Re1 {[%clk 0:02:54.1]} 11... Bxh2+ {[%clk 0:02:36.8]} 12. Kxh2 {[%clk
0:02:51.3]} 12... Qh4+ {[%clk 0:02:36.6]} 13. Kg1 {[%clk 0:02:51.2]} 13... Qxf2+
{[%clk 0:02:36.6]} 14. Kh2 {[%clk 0:02:50.8]} 14... Qh4+ {[%clk 0:02:33.4]} 15.
Kg1 {[%clk 0:02:50.8]} 15... O-O {[%clk 0:02:28.9]} 16. Re3 {[%clk 0:01:52.5]}
16... d6 {[%clk 0:02:08.3]} 17. Qf3 {[%clk 0:01:37.8]} 17... Ng5 {[%clk
0:02:00.8]} 18. Qf1 {[%clk 0:01:23.7]} 18... Bd7 {[%clk 0:01:41.1]} 19. Bd2
{[%clk 0:01:22.9]} 19... Rae8 {[%clk 0:01:40.6]} 20. Rae1 {[%clk 0:01:23.1]}
20... Rxe3 {[%clk 0:01:39.5]} 21. Rxe3 {[%clk 0:01:14.5]} 21... Re8 {[%clk
0:01:38.2]} 22. Rxe8+ {[%clk 0:01:07.8]} 22... Bxe8 {[%clk 0:01:37.9]} 23. Qe2
{[%clk 0:01:05.6]} 23... Bd7 {[%clk 0:01:19.6]} 24. Qe7 {[%clk 0:00:56]} 24...
Nf3+ {[%clk 0:01:16.1]} 0-1

[Event "Late-Titled-Tuesday-Blitz-June-04-2024"]
[Site "Chess.com"]
[Date "2024.06.04"]
[Round "4"]
[White "GMG"]
[Black "snowlord"]
[Result "0-1"]
[WhiteElo "2714"]
[BlackElo "2935"]
[TimeControl "180+1"]
[EndTime "14:36:07 PDT"]
[Termination "snowlord won by resignation"]

1. d4 {[%clk 0:03:00.9]} 1... Nf6 {[%clk 0:02:57]} 2. c4 {[%clk 0:03:00.9]} 2...
Nc6 {[%clk 0:02:56.9]} 3. Nf3 {[%clk 0:02:56.6]} 3... d6 {[%clk 0:02:57.2]} 4.
Nc3 {[%clk 0:02:52]} 4... e5 {[%clk 0:02:57.2]} 5. g3 {[%clk 0:02:50.4]} 5...
Bg4 {[%clk 0:02:55.8]} 6. d5 {[%clk 0:02:47]} 6... Ne7 {[%clk 0:02:55.4]} 7. Nd2
{[%clk 0:02:41.2]} 7... Ng6 {[%clk 0:02:51.3]} 8. f3 {[%clk 0:02:38.7]} 8... Bd7
{[%clk 0:02:51.3]} 9. h4 {[%clk 0:02:35.6]} 9... Nh5 {[%clk 0:02:47.6]} 10. Kf2
{[%clk 0:02:24]} 10... f5 {[%clk 0:02:47.1]} 11. c5 {[%clk 0:02:20.1]} 11... f4
{[%clk 0:02:41.9]} 12. gxf4 {[%clk 0:02:20.5]} 12... Be7 {[%clk 0:02:32.5]} 13.
fxe5 {[%clk 0:02:11.9]} 13... Bxh4+ {[%clk 0:02:32.5]} 14. Ke3 {[%clk
0:02:12.3]} 14... Nxe5 {[%clk 0:02:03.6]} 15. Nde4 {[%clk 0:02:07.1]} 15... Ng3
{[%clk 0:02:01.5]} 16. Rxh4 {[%clk 0:01:59]} 16... Qxh4 {[%clk 0:01:50.4]} 17.
cxd6 {[%clk 0:01:53.4]} 17... Nf5+ {[%clk 0:01:45.1]} 18. Kd2 {[%clk 0:01:52.7]}
18... cxd6 {[%clk 0:01:45.8]} 19. Kc2 {[%clk 0:01:48.3]} 19... Rc8 {[%clk
0:01:44.7]} 20. b3 {[%clk 0:01:29.5]} 20... b5 {[%clk 0:01:35.8]} 21. Kb2 {[%clk
0:01:27.1]} 21... b4 {[%clk 0:01:36.1]} 22. Nb1 {[%clk 0:01:23.3]} 22... Ng3
{[%clk 0:01:29.8]} 23. Nxd6+ {[%clk 0:01:18.5]} 23... Ke7 {[%clk 0:01:30.3]} 24.
Nxc8+ {[%clk 0:01:12.8]} 24... Rxc8 {[%clk 0:01:31.2]} 25. Be3 {[%clk
0:01:08.2]} 25... Nxf1 {[%clk 0:01:23.9]} 26. Qxf1 {[%clk 0:01:06.4]} 26... Qf6
{[%clk 0:01:23.5]} 27. d6+ {[%clk 0:00:55]} 27... Ke8 {[%clk 0:01:22.9]} 0-1

[Event "Late-Titled-Tuesday-Blitz-June-04-2024"]
[Site "Chess.com"]
[Date "2024.06.04"]
[Round "4"]
[White "GMTalks_Youtube"]
[Black "harshu27"]
[Result "1-0"]
[WhiteElo "2755"]
[BlackElo "2538"]
[TimeControl "180+1"]
[EndTime "14:36:15 PDT"]
[Termination "GMTalks_Youtube won by resignation"]

1. e4 {[%clk 0:03:00.9]} 1... e5 {[%clk 0:02:59.7]} 2. Nf3 {[%clk 0:03:00.4]}
2... Nc6 {[%clk 0:02:59.8]} 3. Bc4 {[%clk 0:03:00.1]} 3... Nf6 {[%clk
0:02:58.1]} 4. d3 {[%clk 0:03:00]} 4... Bc5 {[%clk 0:02:58]} 5. Nbd2 {[%clk
0:02:58.8]} 5... O-O {[%clk 0:02:57.1]} 6. O-O {[%clk 0:02:57.6]} 6... d5 {[%clk
0:02:53.7]} 7. exd5 {[%clk 0:02:56.9]} 7... Nxd5 {[%clk 0:02:54.6]} 8. Ne4
{[%clk 0:02:55.9]} 8... Be7 {[%clk 0:02:48.3]} 9. a3 {[%clk 0:02:53.5]} 9... Be6
{[%clk 0:02:48.1]} 10. Re1 {[%clk 0:02:52.4]} 10... Re8 {[%clk 0:02:39.5]} 11.
Neg5 {[%clk 0:02:48.9]} 11... Bg4 {[%clk 0:02:34.6]} 12. h3 {[%clk 0:02:26.5]}
12... Bxg5 {[%clk 0:02:26.4]} 13. Bxg5 {[%clk 0:02:18.5]} 13... Qxg5 {[%clk
0:02:07]} 14. hxg4 {[%clk 0:02:00.7]} 14... Qd8 {[%clk 0:02:01.8]} 15. Ba2
{[%clk 0:01:49.5]} 15... Qd6 {[%clk 0:01:59.2]} 16. Ng5 {[%clk 0:01:47.3]} 16...
Rad8 {[%clk 0:01:54.6]} 17. Qf3 {[%clk 0:01:38.9]} 17... Re7 {[%clk 0:01:42.9]}
18. c3 {[%clk 0:01:30.5]} 18... h6 {[%clk 0:01:18.3]} 19. Ne4 {[%clk 0:01:28.7]}
19... Qd7 {[%clk 0:01:10.3]} 20. Nc5 {[%clk 0:01:15.2]} 20... Qd6 {[%clk
0:00:50.6]} 21. Nxb7 {[%clk 0:01:12.8]} 1-0